Cogmind - Beta 10.2 @@@ ROGUE MODE // 2021.04.03 @ 00:28:44 Player: onyhow Result: Self-destructed Performance ------------- Evolutions (1) 500 Regions Visited (3) 600 Robots Destroyed (23) 115 Value Destroyed (516) 516 Prototype IDs (3) 60 Alien Tech Used (0) 0 Bonus (0) 0 TOTAL SCORE: 1791 Bonus ------- None Cogmind --------- Core Integrity 341/400 Matter 227/300 Energy 250/250 System Corruption 0% Temperature Cool (0) Movement Core (300) Ox5 Location -9/Materials Parts ------- > --- POWER (1) -------- Ion Engine > --- PROPULSION (2) --- (None) > --- UTILITY (4) ------ Heat Sink Medium Storage Unit Signal Interpreter Light Armor Plating > --- WEAPON (2) ------- (None) > --- INVENTORY (8) ---- Light Nuclear Core Medium Storage Unit Beam Cannon Rocket Launcher Peak State ------------ > --- POWER ------------ Ion Engine > --- PROPULSION ------- Aluminum Leg Aluminum Leg > --- UTILITY ---------- Medium Storage Unit Signal Interpreter > --- WEAPON ----------- Beam Cannon Assault Rifle > --- INVENTORY -------- Light Ion Engine Light Nuclear Core Aluminum Leg Heat Sink Medium Storage Unit Medium Laser Small Laser Grenade Launcher [Rating: 8] Favorites ----------- Power Ion Engine Engine Ion Engine Propulsion Aluminum Leg Leg Aluminum Leg Utility Medium Storage Unit Device Heat Sink Storage Medium Storage Unit Processor Signal Interpreter Protection Light Armor Plating Weapon Assault Rifle Energy Gun Small Laser Energy Cannon Beam Cannon Ballistic Gun Assault Rifle Launcher Grenade Launcher Build | -11 -10 -10 -9 ------- Run | Scr Mat Min Mat Slots Evolved 2 | . . . 2 Power . | . . . . Propulsion . | . . . . Utility 2 | . . . 2 Weapon . | . . . . Parts Attached 22 | 6 6 5 5 Power 1 | 1 . . . Engine 1 | 1 . . . Core . | . . . . Reactor . | . . . . Propulsion 7 | 2 2 2 1 Treads . | . . . . Leg 7 | 2 2 2 1 Wheel . | . . . . Hover . | . . . . Flight . | . . . . Utility 6 | 1 3 . 2 Device 1 | . . . 1 Storage 3 | 1 2 . . Processor 1 | . 1 . . Hackware . | . . . . Protection 1 | . . . 1 Artifact . | . . . . Weapon 8 | 2 1 3 2 Energy Gun 2 | . . 1 1 Energy Cannon 1 | . . 1 . Ballistic Gun 3 | 2 1 . . Ballistic Cannon . | . . . . Launcher 2 | . . 1 1 Special Weapon . | . . . . Impact Weapon . | . . . . Slashing Weapon . | . . . . Piercing Weapon . | . . . . Special Melee Weapon . | . . . . Unidentified Prototypes . | . . . . Parts Lost 8 | . . 2 6 Power . | . . . . Propulsion 3 | . . 1 2 Utility . | . . . . Weapon 5 | . . 1 4 Highest Loss Streak 6 | . . 1 6 Average Slot Usage (%) 96 | . 97 97 82 Engine 13 | . 14 14 11 Leg 25 | . 27 25 18 Storage 15 | . 22 14 11 Processor 11 | . 3 14 11 Energy Gun 4 | . . 4 10 Energy Cannon 3 | . . 4 . Ballistic Gun 19 | . 27 17 10 Naked Turns . | . . . . Heaviest Build 21 | 12 20 18 21 Greatest Support 20 | 20 20 20 20 Greatest Overweight (x) 6 | . 6 1 6 Average Overweight (x) . | . . . . Largest Inventory Capacity 10 | 6 10 8 8 Average Capacity 7 | 5 7 8 8 Most Carried 10 | 4 10 8 8 Average Carried 6 | 1 5 7 5 Final Capacity 8 | 6 8 8 8 Final Carried 7 | 2 7 7 4 Class Distribution -------------------- 100% | Mutant Dominant Class ---------------- Mutant | -10/Materials Mutant | -10/Mines Mutant | -9/Materials Resources | -11 -10 -10 -9 ----------- Run | Scr Mat Min Mat Matter Collected 528 | 247 68 213 . Remotely . | . . . . Salvage Created 721 | . 189 373 159 Parts 51 | . 10 26 15 Haulers Intercepted . | . . . . Recyclers Shooed 2 | . 1 . 1 Parts Field Recycled . | . . . . Retrieved Matter . | . . . . Parts Self-Destructed . | . . . . Prevented . | . . . . Kills | -11 -10 -10 -9 ------- Run | Scr Mat Min Mat Combat Hostiles Destroyed 19 | . 4 11 4 Guns 16 | . 4 9 3 AOE 3 | . . 2 1 Classes Destroyed 6 | . 4 . 2 Worker 1 | . . . 1 Recycler 2 | . 1 1 . Watcher 1 | . 1 . . Swarmer 10 | . 3 6 1 Grunt 7 | . 1 5 1 Sentry 2 | . . . 2 Best Kill Streak 5 | . 2 3 5 Combat Bots Only 4 | . 2 3 4 Max Kills in Single Turn 2 | . 1 2 2 Gunslinging . | . . . . Exploded 2 | . . 2 1 Melee . | . . . . Uniques/NPCs Destroyed . | . . . . Combat | -11 -10 -10 -9 -------- Run | Scr Mat Min Mat Damage Taken 979 | . 116 412 451 Core 170 | . 39 72 59 Absorbed by Shields . | . . . . Core Remaining (%) 77 | 100 . 55 . Volleys Fired 55 | . 13 29 13 Largest 2 | . 2 2 2 Hottest 80 | . 40 80 70 Shots Fired 106 | . 26 56 24 Gun 97 | . 26 49 22 Cannon 5 | . . 5 . Launcher 4 | . . 2 2 Special . | . . . . Kinetic 75 | . 26 38 11 Thermal 27 | . . 16 11 Explosive 4 | . . 2 2 Electromagnetic . | . . . . Robot Hit Streak 8 | . 8 8 6 Robot Miss Streak 4 | . 4 3 2 Penetration Max . | . . . . Secondary Targets 1 | . . . 1 Max Gunslinging Chain 1 | . . . 1 Shots Hit Robots 69 | . 15 37 17 Core Hits 38 | . 10 20 8 Critical Hits . | . . . . Critical Kills . | . . . . Critical Parts Destroyed . | . . . . Melee Attacks . | . . . . Impact . | . . . . Slashing . | . . . . Piercing . | . . . . Sneak Attacks . | . . . . Combat Hostiles . | . . . . Follow-up Attacks . | . . . . Damage Inflicted 1107 | . 179 563 365 Guns 784 | . 179 373 232 Cannons 35 | . . 35 . Explosions 288 | . . 155 133 Melee . | . . . . Ramming . | . . . . Kinetic 598 | . 179 296 123 Thermal 221 | . . 112 109 Explosive 288 | . . 155 133 Electromagnetic . | . . . . Impact . | . . . . Slashing . | . . . . Piercing . | . . . . Highest Corruption . | . . . . Average Corruption . | . . . . Corruption Purged . | . . . . Overload Shots . | . . . . Overflow Damage . | . . . . Projectiles . | . . . . Explosions . | . . . . Melee . | . . . . Knockbacks . | . . . . Impact . | . . . . Kinetic . | . . . . Secondary . | . . . . Self-Inflicted Damage . | . . . . Shots . | . . . . Rammed . | . . . . Targets Rammed . | . . . . Kicked . | . . . . Crushed . | . . . . Highest Temperature 78 | . 6 78 2 Average Temperature 31 | . 6 34 2 Received Heat Transfer 270 | . 18 150 102 Siege Activations . | . . . . Robots Corrupted . | . . . . Combat Hostiles . | . . . . Parts Fried . | . . . . Impact Corruptions . | . . . . Robots Melted . | . . . . Combat Hostiles . | . . . . Parts Melted 2 | . . . 2 Heat Transferred 558 | . . 249 309 Parts Sabotaged . | . . . . Parts Stolen . | . . . . Parts Stripped . | . . . . Power Chain Reactions . | . . . . Missiles Intercepted . | . . . . Alert | -11 -10 -10 -9 ------- Run | Scr Mat Min Mat Peak Influence 175 | . 142 175 139 Initial 55 | . . 55 39 Average 72 | . 75 77 56 Maximum Alert Level . | . . . . Low Security (%) 100 | 100 100 100 100 Level 1 . | . . . . Level 2 . | . . . . Level 3 . | . . . . Level 4 . | . . . . Level 5 . | . . . . High Security . | . . . . Max Security . | . . . . Squads Dispatched 2 | . 1 . 1 Investigation 1 | . 1 . . Extermination . | . . . . Reinforcement 1 | . . . 1 Assault . | . . . . Garrison . | . . . . Intercept . | . . . . Construction Impeded . | . . . . Haulers Reinforced . | . . . . Stealth | -11 -10 -10 -9 --------- Run | Scr Mat Min Mat Distress Signals 1 | . . . 1 Communications Jammed . | . . . . Distress Signals . | . . . . Times Spotted 33 | . 6 16 11 Peak Tracking Total 5 | . 3 4 5 Tactical Retreats 4 | . 1 2 1 Traps | -11 -10 -10 -9 ------- Run | Scr Mat Min Mat Traps Triggered 3 | . 2 . 1 Indirectly . | . . . . Trap Hack Attempts . | . . . . Triggered . | . . . . Disarmed . | . . . . Reprogrammed . | . . . . Reused . | . . . . Traps Extracted . | . . . . Installed . | . . . . Triggered . | . . . . Machines | -11 -10 -10 -9 ---------- Run | Scr Mat Min Mat Machines Disabled 2 | . . 1 1 Max in Single Turn 1 | . . 1 1 Machines Sabotaged . | . . . . Garrisons Compromised . | . . . . Overloaded Fab Kills . | . . . . Fab Network Shutdowns . | . . . . Hacking | -11 -10 -10 -9 --------- Run | Scr Mat Min Mat Machines Accessed 2 | . . 1 1 Terminals 2 | . . 1 1 Fabricators . | . . . . Repair Stations . | . . . . Recycling Units . | . . . . Scanalyzers . | . . . . Garrison Access . | . . . . Total Hacks 6 | . . 3 3 Successful 3 | . . 2 1 Failed 3 | . . 1 2 Catastrophic 2 | . . . 2 Database Lockouts . | . . . . Manual 3 | . . 1 2 Terminals 6 | . . 3 3 Fabricators . | . . . . Repair Stations . | . . . . Recycling Units . | . . . . Scanalyzers . | . . . . Garrison Access . | . . . . Terminal Hacks 3 | . . 2 1 Prototype ID Bank 2 | . . 1 1 Zone Layout 1 | . . 1 . Fabricator Hacks . | . . . . Repair Station Hacks . | . . . . Recycling Unit Hacks . | . . . . Scanalyzer . | . . . . Garrison Access Hacks . | . . . . Unauthorized Hacks . | . . . . Terminals . | . . . . Fabricators . | . . . . Repair Stations . | . . . . Recycling Units . | . . . . Scanalyzers . | . . . . Garrison Access . | . . . . Data Cores Recovered . | . . . . Used . | . . . . Hacking Detections 2 | . . 1 1 Full Trace Events . | . . . . Feedback Events . | . . . . Feedback Blocked . | . . . . Robot Schematics Acquired . | . . . . Robots Built . | . . . . Matter . | . . . . Time . | . . . . Total Robot Build Rating . | . . . . Part Schematics Acquired . | . . . . Parts Built . | . . . . Matter . | . . . . Time . | . . . . Total Part Build Rating . | . . . . Parts Repaired . | . . . . Time . | . . . . Parts Recycled . | . . . . Recycled Matter . | . . . . Retrieved Matter . | . . . . Retrieved Components . | . . . . Parts Scanalyzed . | . . . . Part Schematics Acquired . | . . . . Parts Damaged . | . . . . Bothacking | -11 -10 -10 -9 ------------ Run | Scr Mat Min Mat Used RIF Installer . | . . . . Robots Hacked . | . . . . Non-combat . | . . . . Combat . | . . . . Robot Hacks Applied . | . . . . Relay Couplers Released . | . . . . Robots Rewired . | . . . . Allies Hacked . | . . . . Hacks Repelled . | . . . . Allies | -11 -10 -10 -9 -------- Run | Scr Mat Min Mat Total Allies 1 | . . 1 . Largest Group 1 | . . 1 . Highest-Rated Group 31 | . . 31 . Highest-Rated Ally 31 | . . 31 . Total Orders . | . . . . Ally Attacks . | . . . . Total Damage . | . . . . Kills . | . . . . Allies Corrupted . | . . . . Allies Melted . | . . . . Intel | -11 -10 -10 -9 ------- Run | Scr Mat Min Mat Robot Analysis Total . | . . . . Derelict Logs Recovered 2 | . . 2 . Drone Launches . | . . . . Drone Recoveries . | . . . . Exploration | -11 -10 -10 -9 ------------- Run | Scr Mat Min Mat Turns Passed 1667 | 62 392 1057 156 Spaces Moved 1183 | 46 276 774 87 Core 12 | 9 1 . 2 Treads . | . . . . Legs 1171 | 37 275 774 85 Wheels . | . . . . Hover . | . . . . Flight . | . . . . Fastest Speed 50 | 50 120 120 120 Average Speed 122 | 106 120 123 127 Slowest Speed 350 | 120 350 150 350 Overloaded Moves . | . . . . Propulsion Burnouts . | . . . . Robots Hopped . | . . . . Cave-ins Triggered . | . . . . Exploration Rate (%) 37 | 2 40 98 9 Regions Visited 3 Branch Regions 1 Pre-discovered Areas 1 | . . 1 . Known Exits Taken 2 | . 1 1 . Unknown Exits Taken 1 | 1 . . . Scrap Searched 1 | . . 1 . Spaces Dug . | . . . . Terrain Destroyed 21 | . . 21 . Melee . | . . . . Projectile . | . . . . AOE 21 | . . 21 . Terrain Rammed . | . . . . Walls Destroyed . | . . . . Machines Disabled . | . . . . Actions | -11 -10 -10 -9 --------- Run | Scr Mat Min Mat Total 1297 | 59 311 820 107 Wait 7 | . 2 5 . Move 1180 | 45 275 773 87 Hop . | . . . . Pick Up 27 | 8 12 5 2 Fast Attach . | . . . . Attach 17 | 6 4 2 5 Detach . | . . . . Swap 5 | . 2 3 . Drop 6 | . 3 3 . Fire 55 | . 13 29 13 Melee . | . . . . Ram . | . . . . Kick . | . . . . Crush . | . . . . Escape Stasis . | . . . . Rewire . | . . . . Trap . | . . . . Miscellaneous . | . . . . Route ------- -11/Scrapyard -10/Materials (discovered 2 exits: *Mat / *Min) -10/Mines (discovered 2 exits: *Mat x2) -9/Materials History --------- Turn | Location | Event 14 | -11/Scrapyard | Discovered new exit (range 13) 63 | -11/Scrapyard | Entered Materials 150 | -10/Materials | Discovered new exit (range 15) 274 | -10/Materials | Discovered new exit (range 10) 306 | -10/Materials | Build established: Mutant 382 | -10/Materials | Identified exit to Materials 454 | -10/Materials | Identified exit to Mines 455 | -10/Materials | Entered Mines 547 | -10/Mines | Learned 2 Materials zone layouts 817 | -10/Mines | Discovered exit to Materials (range 14) 820 | -10/Mines | Received a Mining Laser from a helpful Derelict 826 | -10/Mines | Learned location of Zion (-6) 1008 | -10/Mines | Discovered exit to Materials (range 7) 1020 | -10/Mines | Received a Rocket Launcher from a helpful Derelict 1512 | -10/Mines | Entered Materials 1512 | -9/Materials | Evolved 2 slots: Utility x2 1668 | -9/Materials | Self-destructed Last Messages --------------- 01627_ Y-45 Defender destroyed. 01627_ Switching to secondary target: Y-45 Defender. 01629_ Aluminum Leg destroyed. 01632_ G-34 Mercenary destroyed. 01636_ Acquired Lgt. Armor Plating. 01642_ R-06 Scavenger collects Aluminum Leg. 01644_ Heat Sink melted. 01644_ Y-45 Defender destroyed. 01646_ R-06 Scavenger collects Heat Sink. 01653_ Med. Laser destroyed. 01654_ R-06 Scavenger collects Heat Sink. 01656_ K-01 Serf collects debris. 01656_ Assault Rifle destroyed. 01657_ S-10 Pest destroyed. 01657_ Material Compactor disabled. 01657_ K-01 Serf destroyed. 01657_ R-06 Scavenger collects Lgt. Treads. 01658_ Aluminum Leg destroyed. 01660_ R-06 Scavenger collects Hvy. Assault Rifle. 01667_ Grenade Launcher destroyed. Map ----- +----------------------------------------------------+ | ?????????????????????????????????????????????????? | | ?????????????????????????????????????????????????? | | ?????????????????????????????????????????????????? | | ?????????????????????????????????????????????????? | | ?????????????????????????????????????????????????? | | ?????????????????????????????????????????????????? | | ?????????????????????????????????????????????????? | | ?????????????????????????????????????????????????? | | ?????????????????????????????????????????????????? | | ?????????????????????????????????????????????????? | | ?????????????????????????????????????????????????? | | ?????????????????????????????????????????????????? | | ?????????????????????????????????????????????????? | | ?????????????????????????????????????????????????? | | ?????????????????????????????????????????????????? | | ?????????????????????????????????????????????????? | | ?????????????????????????????????????????????????? | | ?????????????????????????????????????????????????? | | ??????????????????#??????????????????????????????? | | ??????????????????# ?????????????????????????????? | | ??????????????????# ####?????????????????????????? | | ???????????######## ?????????????????????????? | | u ????????????????????????? | | ############### ????????????????????????? | | ##??????#!! g######## #####??????????? | | #??????#!! [%@ r % [k k ???????? | | #??????#!! t ###########??????????? | | #??????#!! a #??????###########???? | | #??????#[[ #??????# #???? | | ##??????#[[ = * #??????# #???? | | ####??????##### ####???# #???? | | ############??# s "" #???#! #???? | | # #??# s """ #???# #???? | | # ##?#s """ [ #???# """ """ #???? | | # + """"" #???# """ """ #???? | | # ##?# """ #???# """ """ #???? | | ##### #??# #########+######??? | | + #??# #??? | | #########????#####+########+######## #??? | | # #??????????????????# #???# #??? | | # #??????????????????# #???#########??? | | # #####??????????????# "" #??????????????? | | + # ??????????????# T" #??????????????? | | #### # ??????????????# "" #??????????????? | | ???# # ??????????????# #??????????????? | | ???###### ??????????????########??????????????? | | ????????#####????????????????????????????????????? | | | | | | | +----------------------------------------------------+ Best States ------------- Heat Dissipation 38 Energy Generation 10 Energy Capacity 250 Matter Stores 300 Matter Capacity 300 Sight Range 16 Terrain Scan Density 10 Armor Coverage 150 Evasion (%) 50 Item Schematics ----------------- None Robot Schematics ------------------ None Fabricated ------------ Nothing Alien Tech Used ----------------- None Achievements -------------- None Challenges ------------ None Game ------ Seed GravitonScatterBay Manual? 0 Play Time 00:14:44 Cumulative 65.3 hours Start 2021.04.03 @ 00:13:51 End 2021.04.03 @ 00:28:44 Sessions 1 Manual Loads 0 Difficulty Rogue Special Mode None Game No. 46 Rogue 46 Adventurer 0 Explorer 0 Win Type - Total 0 Types 0/0/0/0/0/0/0/0/0 Lore% 23 Gallery% 38 Achievement% 27 Wizard Run 0 Options --------- ASCII 0 Keyboard 0 Movement Mouse Keybinds 0 Fullscreen 2 Font 18/SmallcapsGlow Map View 76x50 Tactical HUD 1 Map Filters NONE Filters NONE Steam 1 RUN: 4c9396e8-5406-4fd0-ba61-5ad4716e1223